[Event "Slovakian-ch Youth 2022"]
[Site "Lubovna"]
[Date "2022.05.23"]
[Round "3.10"]
[White "Kapec, Kristian"]
[Black "Svorad, Tomas"]
[Result "1-0"]
[ECO "B31"]
[WhiteElo "1902"]
[BlackElo "1405"]
[Annotator "TA"]
[PlyCount "115"]
[EventDate "2022.05.22"]
[EventCountry "SVK"]
[SourceTitle "playchess.com"]
[Source "ChessBase"]
[SourceQuality "1"]
[TimeControl "40/5400+30:1800+30"]

{[%evp 10,115,9,-6,67,77,63,79,76,50,100,8,25,3,82,81,89,47,64,-87,-45,-46,-36,-28,-26,-30,17,30,53,42,35,40,80,82,143,153,263,260,262,248,280,231,210,208,573,400,415,181,177,186,185,167,230,239,239,99,101,52,58,16,12,0,8,4,177,164,370,219,339,329,609,299,858,857,549,284,1133,1000,1000,929,2687,2422,2217,2047,1413,1141,2516,2177,29972,29973,29978,29979,29978,29979,29981,29982,29982,29983,29983,29984,29984,29985,29985,29985,29987,29988,29988,29988]} 1. e4 {[%emt 0:00:03]} c5 {[%emt 0:00:26]} 2. Nf3 {[%emt 0:00:07]} Nc6 {[%emt 0:00:15]} 3. Bb5 {[%emt 0:00:58]} g6 {[%emt 0:00:26]} 4. c3 {[%emt 0:00:30]} Bg7 {[%emt 0:00:33]} 5. O-O {[%emt 0:02:31]} Nf6 {[%emt 0:01:04]} 6. e5 {[%emt 0:01:00]} Ng4 {[%emt 0:01:04] B31: Sicilian: 2...Nc6 3 Bb5 g6.} (6... Nd5 $11) 7. d4 $14 {[%emt 0:00:13]} cxd4 {[%emt 0:12:55]} 8. cxd4 {[%emt 0:02:20] Black must now prevent h3.} a6 {[%emt 0:06:52] [#] White is better.} 9. Bc4 $146 {[%emt 0:01:31]} ({Predecessor:} 9. Bd3 d6 10. h3 Nh6 11. Nc3 Nf5 12. Be4 Bd7 13. Re1 Rb8 14. Bf4 dxe5 15. dxe5 {1-0 (36) Viageiro,V-Shah,D (1424) Port Elizabeth 2016}) 9... d5 {[%emt 0:02:42]} (9... O-O $14) 10. Bd3 {[%emt 0:02:59]} (10. Bb3 $16) 10... Nh6 {[%emt 0:01:59]} 11. Nc3 {[%emt 0:02:10]} Nf5 {[%emt 0:03:21]} (11... Bg4 $1 $11) 12. Bb1 {[%emt 0:02:10]} b5 {[%emt 0:11:45]} 13. Bg5 {[%emt 0:03:14]} O-O {[%emt 0:08:47]} 14. Qb3 $2 {[%emt 0:05:58]} (14. Bf4 $14 {keeps the upper hand.}) 14... f6 {[%emt 0:02:48]} (14... Nfxd4 {is interesting.} 15. Nxd4 Nxd4 16. Qb4 Bxe5 17. Bxe7 a5) 15. exf6 {[%emt 0:15:33]} exf6 {[%emt 0:02:48]} 16. Bxf5 {[%emt 0:03:38]} (16. Nxd5 $2 Rf7 17. Bf4 Ncxd4 18. Nxd4 Nxd4 $19) 16... Bxf5 {[%emt 0:01:15]} 17. Be3 {[%emt 0:08:08]} (17. Nxd5 $2 Kh8 18. Nxf6 Bxf6 $19) 17... Bd3 {[%emt 0:06:05]} (17... Be6 $142) 18. Rfc1 $11 {[%emt 0:07:05]} Bc4 {[%emt 0:01:27]} 19. Qc2 {[%emt 0:00:32]} b4 {[%emt 0:06:55]} 20. b3 {[%emt 0:01:01][%cal Bb2b3,Bb3c4,Bc4d5][%mdl 32]} bxc3 {[%emt 0:01:35]} 21. bxc4 {[%emt 0:00:06]} f5 {[%emt 0:02:48]} (21... dxc4 $142 22. Qxc3 Qd5) 22. Qxc3 $16 {[%emt 0:01:10]} Qa5 {[%emt 0:04:40]} (22... f4 $16) 23. Qxa5 $18 {[%emt 0:01:08]} Nxa5 {[%emt 0:00:05]} 24. cxd5 {[%emt 0:00:08]} Rad8 {[%emt 0:01:13]} 25. Rc5 {[%emt 0:03:58]} Nb7 {[%emt 0:00:06]} 26. Rc7 {[%emt 0:00:57]} Na5 {[%emt 0:02:05]} (26... Nd6 27. Bg5 Bf6 28. Bxf6 Rxf6) 27. Rac1 {[%emt 0:02:20]} Rxd5 {[%emt 0:00:22]} 28. R1c5 {[%emt 0:00:10]} (28. Ra7 $142) 28... Rxc5 {[%emt 0:04:13]} 29. Rxc5 {[%emt 0:00:06]} ({Resist} 29. dxc5 $6 Rf7 30. Rc8+ Rf8 $16) 29... Nb7 {[%emt 0:00:17]} 30. Rc7 {[%emt 0:00:04]} Nd8 {[%emt 0:03:03]} (30... Nd6 $142 31. Rc6 Rd8 32. Rxa6 Nb5) 31. g3 {[%emt 0:02:05]} Rf7 {[%emt 0:02:19]} 32. Rxf7 {[%emt 0:00:42]} (32. Rc8 $18 Rf8 33. Ra8) 32... Kxf7 {[%emt 0:00:17][%mdl 4096] Endgame KBN-KBN} 33. Kf1 {[%emt 0:00:06]} ({White should play} 33. Ng5+ $16 Ke8 34. Nxh7) 33... Ke6 $14 {[%emt 0:02:04]} 34. Ke2 {[%emt 0:00:04]} Kd5 {[%emt 0:02:59]} 35. Kd3 {[%emt 0:00:13]} Ne6 {[%emt 0:00:28]} 36. h3 {[%emt 0:01:59]} f4 $2 {[%emt 0:01:37] This costs Black the game.} (36... Bh8 $11 {and Black stays safe.}) 37. gxf4 $18 {[%emt 0:00:28][%cal Bg3f4,Bf4g5][%mdl 32]} ({Don't take} 37. Bxf4 Nxd4 38. Nxd4 Bxd4 $16) 37... Bh6 $2 {[%emt 0:01:39]} (37... Nd8 38. Ng5 Nc6 39. Nxh7 Nb4+ 40. Kc3 Nc6) 38. Ng5 {[%emt 0:00:53]} (38. f5 $142) 38... Nxg5 {[%emt 0:01:33]} (38... Bxg5 $142 39. fxg5 Nd8) 39. fxg5 {[%emt 0:00:05] KB-KB} Bg7 {[%emt 0:00:13]} (39... Bf8 40. Bd2 Bd6) 40. f3 {[%emt 0:00:12]} (40. h4 $142 Bf8 41. f4) 40... Bh8 $2 {[%emt 0:00:25]} (40... Bf8 41. f4 Ba3) 41. Kc3 {[%emt 0:30:07]} Bg7 {[%emt 0:31:30]} 42. h4 {[%emt 0:02:49]} a5 {[%emt 0:01:01]} (42... Bf8 43. Kd3 Bd6) 43. a4 {[%emt 0:00:15][%cal Ba2a4,Ba4a5][%mdl 32] [#] Kd3 is the strong threat.} Bf8 {[%emt 0:00:25]} 44. Kd3 {[%emt 0:00:23] Threatens to win with Bd2.} Bg7 {[%emt 0:00:59]} 45. Bd2 {[%emt 0:00:40]} Bxd4 {[%emt 0:00:35]} 46. Bxa5 {[%emt 0:00:07]} Bf2 {[%emt 0:00:58]} 47. Bd2 {[%emt 0:00:15]} Bxh4 {[%emt 0:00:14]} 48. a5 {[%emt 0:00:10] [#] White wants to mate with a6.} Bg3 {[%emt 0:00:00]} 49. a6 {[%emt 0:00:00] White mates.} Kc6 {[%emt 0:00:00]} 50. a7 {[%emt 0:00:00]} Kb7 {[%emt 0:00:00]} 51. Be3 {[%emt 0:00:00]} Bf4 {[%emt 0:00:00]} 52. Bxf4 {[%emt 0:00:00]} Kxa7 {[%emt 0:00:00] KB-KPP} 53. Ke4 {[%emt 0:00:00]} Kb7 {[%emt 0:00:00]} 54. Ke5 {[%emt 0:00:00]} Kc7 {[%emt 0:00:00]} 55. Kf6+ {[%emt 0:00:00]} Kd7 {[%emt 0:00:00]} 56. Kg7 {[%emt 0:00:00]} Ke7 {[%emt 0:00:00]} 57. Kxh7 {[%emt 0:00:00]} Kf7 {[%emt 0:00:00]} 58. Kh6 {[%emt 0:00:00] Weighted Error Value: White=0.59/Black=0.60} 1-0

[Event "Slovakian-ch Youth 2022"]
[Site "Lubovna"]
[Date "2022.05.23"]
[Round "3.10"]
[White "Krivosik, Matus"]
[Black "Carnecky, Viliam"]
[Result "0-1"]
[ECO "D00"]
[WhiteElo "1224"]
[BlackElo "1380"]
[Annotator "NA RC COMBH"]
[PlyCount "130"]
[EventDate "2022.05.22"]
[EventCountry "SVK"]
[SourceTitle "playchess.com"]
[Source "ChessBase"]
[SourceQuality "1"]
[TimeControl "40/5400+30:1800+30"]

1. d4 {[%emt 0:00:03]} d5 {[%emt 0:00:29]} 2. Bf4 {[%emt 0:00:09]} Nf6 {[%emt 0:00:27]} 3. e3 {[%emt 0:00:07]} c5 {[%emt 0:01:26]} 4. Nc3 {[%emt 0:00:19]} Bf5 {[%emt 0:03:09]} 5. Nf3 {[%emt 0:03:41]} e6 {[%emt 0:03:06]} 6. Nh4 {[%emt 0:01:49]} Bg6 {[%emt 0:03:33]} 7. Nxg6 {[%emt 0:01:27]} hxg6 {[%emt 0:00:09]} 8. Qf3 {[%emt 0:02:54]} Nc6 {[%emt 0:03:32]} 9. Bb5 {[%emt 0:02:56]} Qb6 {[%emt 0:01:37]} 10. O-O-O {[%emt 0:03:43]} c4 {[%emt 0:01:35]} 11. Qg3 {[%emt 0:03:05]} Nh5 {[%emt 0:01:48]} 12. Qf3 {[%emt 0:03:08]} Bb4 {[%emt 0:01:20]} 13. Bxc6+ {[%emt 0:03:12]} Qxc6 {[%emt 0:00:25]} 14. Ne2 {[%emt 0:01:19]} c3 {[%emt 0:00:56]} 15. bxc3 {[%emt 0:01:16]} Bxc3 {[%emt 0:00:06]} 16. Nxc3 {[%emt 0:00:29]} Qxc3 {[%emt 0:00:09]} 17. Kb1 {[%emt 0:01:35]} Rc8 {[%emt 0:01:14]} 18. Qe2 {[%emt 0:01:26]} Rc6 {[%emt 0:01:45]} 19. Qb5 {[%emt 0:03:08]} O-O {[%emt 0:00:29]} 20. Qd3 {[%emt 0:02:07]} Rb6+ {[%emt 0:04:05]} 21. Kc1 {[%emt 0:00:12]} Qb2+ {[%emt 0:01:03]} 22. Kd2 {[%emt 0:00:12]} Rc8 {[%emt 0:00:23]} 23. Rb1 {[%emt 0:01:12]} Qxa2 {[%emt 0:01:04]} 24. Rxb6 {[%emt 0:01:24]} Qa5+ {[%emt 0:00:25]} 25. c3 {[%emt 0:01:33]} Qxb6 {[%emt 0:00:18]} 26. Be5 {[%emt 0:00:30]} Nf6 {[%emt 0:01:00]} 27. f3 {[%emt 0:00:34]} Nd7 {[%emt 0:02:35]} 28. Bf4 {[%emt 0:00:32]} Qc6 {[%emt 0:00:42]} 29. h4 {[%emt 0:00:00]} Nb6 {[%emt 0:00:00]} 30. h5 {[%emt 0:00:00]} Nc4+ {[%emt 0:01:02]} 31. Ke2 {[%emt 0:01:08]} gxh5 {[%emt 0:03:21]} 32. Rxh5 {[%emt 0:00:59]} g6 {[%emt 0:00:45]} 33. Rh3 {[%emt 0:02:52]} Nb2 {[%emt 0:01:08]} 34. Be5 {[%emt 0:03:17]} Kf8 {[%emt 0:00:15]} 35. Qc2 {[%emt 0:04:58]} Qb5+ {[%emt 0:03:06]} 36. Kf2 {[%emt 0:03:10]} Nd3+ {[%emt 0:00:59]} 37. Kg3 {[%emt 0:00:42]} Ke7 {[%emt 0:01:26]} 38. Rh1 {[%emt 0:07:12]} Nxe5 {[%emt 0:00:47]} 39. Rb1 {[%emt 0:00:59]} Rxc3 {[%emt 0:15:45]} 40. Qxc3 {[%emt 0:06:34]} Qxb1 {[%emt 0:00:48]} 41. Qc5+ {[%emt 0:30:17]} Kd7 {[%emt 0:32:46]} 42. dxe5 {[%emt 0:00:20]} Qb6 {[%emt 0:00:35]} 43. Qf8 {[%emt 0:01:15]} Qd8 {[%emt 0:02:50]} 44. Qxf7+ {[%emt 0:01:28]} Qe7 {[%emt 0:00:11]} 45. Qxg6 {[%emt 0:00:10]} b5 {[%emt 0:00:36]} 46. Qd3 {[%emt 0:02:57]} a6 {[%emt 0:00:40]} 47. e4 {[%emt 0:00:29]} Qg5+ {[%emt 0:01:42]} 48. Kf2 {[%emt 0:00:58]} Qxe5 {[%emt 0:00:45]} 49. exd5 {[%emt 0:00:18]} Qxd5 {[%emt 0:01:09]} 50. Qh7+ {[%emt 0:00:29]} Kd6 {[%emt 0:02:31]} 51. Qh8 {[%emt 0:04:02]} Qc5+ {[%emt 0:01:08]} 52. Kf1 {[%emt 0:00:45]} Qc4+ {[%emt 0:02:32]} 53. Kg1 {[%emt 0:01:28]} Kc5 {[%emt 0:06:03]} 54. Qe5+ {[%emt 0:00:38]} Qd5 {[%emt 0:00:37]} 55. Qc3+ {[%emt 0:00:55]} Kb6 {[%emt 0:00:19]} 56. Kf1 {[%emt 0:02:26]} Qc4+ {[%emt 0:02:48]} 57. Qxc4 {[%emt 0:03:54]} bxc4 {[%emt 0:00:10]} 58. g4 {[%emt 0:00:59]} Kc7 {[%emt 0:00:13]} 59. g5 {[%emt 0:00:44]} Kd7 {[%emt 0:00:04]} 60. Ke2 {[%emt 0:00:44]} a5 {[%emt 0:02:18]} 61. Kd2 {[%emt 0:00:24]} a4 {[%emt 0:00:16]} 62. Kc2 {[%emt 0:01:35]} e5 {[%emt 0:01:00]} 63. Kc3 {[%emt 0:01:18]} a3 {[%emt 0:00:40]} 64. Kc2 {[%emt 0:00:08]} Ke6 {[%emt 0:00:32]} 65. Kb1 {[%emt 0:01:13]} c3 {[%emt 0:00:38]} 0-1

[Event "Slovakian-ch Youth 2022"]
[Site "Lubovna"]
[Date "2022.05.23"]
[Round "3.11"]
[White "Marcin, Richard"]
[Black "Cedzo, Adam"]
[Result "0-1"]
[ECO "C25"]
[WhiteElo "1325"]
[BlackElo "1869"]
[Annotator "NA RC COMBH"]
[PlyCount "31"]
[EventDate "2022.05.22"]
[EventCountry "SVK"]
[SourceTitle "playchess.com"]
[Source "ChessBase"]
[SourceQuality "1"]
[TimeControl "40/5400+30:1800+30"]

{[%evp 10,30,-1,0,32767,18,32767,-276,-274,32767,32767,32767,-301,32767,-280,-311,-324,-337,-347,-391,-325,-442,-445]} 1. e4 {[%emt 0:00:04]} e5 {[%emt 0:12:18]} 2. Ne2 {[%emt 0:00:23]} Nf6 {[%emt 0:00:52]} 3. Nbc3 {[%emt 0:00:16]} Bc5 {[%emt 0:00:30]} 4. d4 {[%emt 0:00:32]} exd4 {[%emt 0:00:44]} 5. Nxd4 {[%emt 0:00:14]} d6 {[%emt 0:00:49]} 6. Bg5 {[%emt 0:00:41]} c6 {[%emt 0:01:39]} 7. Be2 {[%emt 0:02:02]} Qb6 {[%emt 0:00:28]} 8. O-O $2 {[%emt 0:20:57]} Bxd4 {[%emt 0:00:18]} 9. Na4 {[%emt 0:00:36]} Qa5 {[%emt 0:00:24]} 10. Qxd4 {[%emt 0:00:40]} Qxg5 {[%emt 0:00:11]} 11. Qxd6 {[%emt 0:01:04]} Nxe4 {[%emt 0:01:54]} 12. Qd4 {[%emt 0:00:17]} Nf6 {[%emt 0:00:35]} 13. Qb4 {[%emt 0:01:25]} Nd5 {[%emt 0:01:18]} 14. Qa3 {[%emt 0:02:34]} Qe7 {[%emt 0:00:21]} ({Avoid the trap} 14... b5 $2 15. Nc5 $19) 15. Nc5 {[%emt 0:04:26]} O-O $19 {[%emt 0:00:15]} ({Not} 15... Qxe2 16. Rfe1 Qxe1+ 17. Rxe1+ Kd8 18. Qg3 $16) 16. Qf3 {[%emt 0:02:13]} 0-1

[Event "Slovakian-ch Youth 2022"]
[Site "Lubovna"]
[Date "2022.05.23"]
[Round "3.11"]
[White "Kurimsky, Kristian"]
[Black "Demjan, David"]
[Result "0-1"]
[ECO "B00"]
[WhiteElo "1006"]
[BlackElo "1375"]
[Annotator "NA RC COMBH"]
[PlyCount "96"]
[EventDate "2022.05.22"]
[EventCountry "SVK"]
[SourceTitle "playchess.com"]
[Source "ChessBase"]
[SourceQuality "1"]
[TimeControl "40/5400+30:1800+30"]

1. e4 {[%emt 0:00:02]} d6 {[%emt 0:00:05]} 2. Bc4 {[%emt 0:00:09]} Nf6 {[%emt 0:00:27]} 3. Nc3 {[%emt 0:00:44]} c6 {[%emt 0:00:23]} 4. d3 {[%emt 0:00:43]} g6 {[%emt 0:04:26]} 5. Be3 {[%emt 0:03:36]} Bg7 {[%emt 0:01:26]} 6. Nf3 {[%emt 0:00:43]} O-O {[%emt 0:02:13]} 7. Qd2 {[%emt 0:01:37]} Re8 {[%emt 0:02:18]} 8. h3 {[%emt 0:04:09]} d5 {[%emt 0:01:47]} 9. Bb3 {[%emt 0:00:17]} e5 {[%emt 0:05:53]} 10. d4 {[%emt 0:00:56]} exd4 {[%emt 0:04:13]} 11. Nxd4 {[%emt 0:01:05]} Nxe4 12. Nxe4 {[%emt 0:00:20]} Rxe4 {[%emt 0:04:42]} 13. f3 {[%emt 0:02:49]} Qh4+ {[%emt 0:05:10]} 14. Kd1 {[%emt 0:03:20]} Rxd4 {[%emt 0:02:57]} 15. Bxd4 {[%emt 0:01:16]} Qxd4 {[%emt 0:00:11]} 16. Qxd4 {[%emt 0:00:59]} Bxd4 {[%emt 0:00:06]} 17. g4 {[%emt 0:01:47]} Bxb2 {[%emt 0:00:47]} 18. Rb1 {[%emt 0:00:12]} Bc3 {[%emt 0:00:19]} 19. h4 {[%emt 0:00:12]} Be6 {[%emt 0:03:01]} 20. h5 {[%emt 0:01:07]} Nd7 {[%emt 0:00:57]} 21. hxg6 {[%emt 0:01:18]} hxg6 {[%emt 0:00:23]} 22. Rg1 {[%emt 0:00:24]} Kg7 {[%emt 0:00:42]} 23. Ke2 {[%emt 0:03:21]} Nc5 {[%emt 0:00:54]} 24. Kf2 {[%emt 0:01:56]} Bd4+ {[%emt 0:00:08]} 25. Kg2 {[%emt 0:00:19]} Bxg1 {[%emt 0:00:11]} 26. Rxg1 {[%emt 0:00:18]} a5 {[%emt 0:00:57]} 27. c3 {[%emt 0:00:16]} Nxb3 {[%emt 0:00:34]} 28. axb3 {[%emt 0:00:10]} Rd8 {[%emt 0:00:11]} 29. f4 {[%emt 0:00:21]} Bxg4 {[%emt 0:00:10]} 30. Kg3 {[%emt 0:00:58]} f5 {[%emt 0:00:23]} 31. Re1 {[%emt 0:00:35]} Kf6 {[%emt 0:00:12]} 32. Rb1 {[%emt 0:00:42]} Rh8 {[%emt 0:00:55]} 33. b4 {[%emt 0:00:13]} Rh3+ {[%emt 0:00:36]} 34. Kg2 {[%emt 0:00:26]} Rxc3 {[%emt 0:01:31]} 35. bxa5 {[%emt 0:00:08]} Ra3 {[%emt 0:00:53]} 36. Rxb7 {[%emt 0:00:47]} Rxa5 {[%emt 0:00:15]} 37. Rb6 {[%emt 0:01:01]} Rc5 {[%emt 0:00:24]} 38. Kf2 {[%emt 0:00:15]} d4 {[%emt 0:00:27]} 39. Rb4 {[%emt 0:00:41]} Rd5 {[%emt 0:01:02]} 40. Rb6 {[%emt 0:00:15]} Rd6 {[%emt 0:00:09]} 41. Ke1 {[%emt 0:30:41]} g5 {[%emt 0:30:17]} 42. fxg5+ {[%emt 0:00:32]} Kxg5 {[%emt 0:00:07]} 43. Kd2 {[%emt 0:01:17]} f4 {[%emt 0:00:08]} 44. Rb4 {[%emt 0:00:44]} f3 {[%emt 0:00:16]} 45. Ke1 {[%emt 0:00:08]} d3 {[%emt 0:00:03]} 46. Rb2 {[%emt 0:00:29]} d2+ {[%emt 0:00:21]} 47. Rxd2 {[%emt 0:00:10]} Rxd2 {[%emt 0:00:04]} 48. Kxd2 {[%emt 0:00:09]} f2 {[%emt 0:00:06]} 0-1

[Event "Slovakian-ch Youth 2022"]
[Site "Lubovna"]
[Date "2022.05.23"]
[Round "3.12"]
[White "Gourlay, Martin B"]
[Black "Cerven, Samuel"]
[Result "1/2-1/2"]
[ECO "B23"]
[WhiteElo "1911"]
[BlackElo "1353"]
[Annotator "TA"]
[PlyCount "113"]
[EventDate "2022.05.22"]
[EventCountry "SVK"]
[SourceTitle "playchess.com"]
[Source "ChessBase"]
[SourceQuality "1"]
[TimeControl "40/5400+30:1800+30"]

{[%evp 9,113,4,12,14,16,-41,-31,-81,-77,-70,-66,-124,-81,-201,-154,-148,-125,-212,-104,-122,-115,-116,-95,-155,-163,-152,-108,-117,-112,-159,-61,-91,-51,-58,-59,-178,-152,-156,-105,-109,-89,-110,-42,-70,-81,-112,-83,-135,127,-80,130,138,207,-340,-287,-699,-693,-644,-479,-896,-331,-517,-386,-491,-498,-478,-344,-351,-240,-217,-190,-202,-163,-153,0,-42,0,-8,42,42,42,42,42,42,42,42,42,8,8,8,1268,961,5114,8,8,0,0,0,8,0,0,-8,-8,-8,-8,-12]} 1. e4 {[%emt 0:00:09]} c5 {[%emt 0:00:31]} 2. Nc3 {[%emt 0:00:11]} d6 {[%emt 0:00:27]} 3. g3 {[%emt 0:00:07]} Nf6 {[%emt 0:02:05]} 4. d3 {[%emt 0:01:00]} g6 {[%emt 0:00:58]} 5. Be3 {[%emt 0:00:33]} Bg7 {[%emt 0:00:52]} 6. Bg2 {[%emt 0:00:56] B23: Closed Sicilian: Lines without g3.} O-O {[%emt 0:00:45]} 7. Qd2 {[%emt 0:00:15]} (7. Nge2 $11) 7... Ng4 $15 {[%emt 0:06:24]} 8. h3 {[%emt 0:00:31]} (8. Bf4 $15) 8... Nxe3 $17 {[%emt 0:00:13]} 9. Qxe3 {[%emt 0:00:03]} Nc6 {[%emt 0:00:43] [#]} 10. Nf3 $146 {[%emt 0:01:30]} (10. Qd2 $15) ({Predecessor:} 10. Nge2 Rb8 11. O-O b5 12. Rab1 Bb7 13. a3 Ba8 14. Qd2 a5 15. f4 b4 16. axb4 axb4 {1-0 (38) Vander Zwalmen,M (1666)-Van Nooten,E (1394) Geraardsbergen 2003}) 10... Bd7 {[%emt 0:02:08]} 11. O-O-O {[%emt 0:02:13]} (11. a3 $17) 11... a5 {[%emt 0:03:20]} 12. h4 {[%emt 0:05:48]} h5 {[%emt 0:06:35]} 13. Bh3 {[%emt 0:01:56]} (13. d4 cxd4 14. Nxd4) (13. a4 $17 {keeps fighting.}) 13... Rb8 {[%emt 0:03:07]} (13... Bxh3 14. Rxh3 a4) (13... Bxh3 $19 {and Black stays clearly on top.} 14. Rxh3 a4) 14. Nb5 {[%emt 0:05:28]} Bxh3 {[%emt 0:07:42]} 15. Rxh3 {[%emt 0:00:16]} Qd7 {[%emt 0:00:41]} 16. Rh2 {[%emt 0:00:23]} (16. Rhh1 $142) 16... Ne5 {[%emt 0:01:01]} 17. Nxe5 {[%emt 0:00:53]} Qxb5 {[%emt 0:00:17]} (17... Bxe5 18. a4) ({Of course not} 17... Bxe5 $6 18. a4 $11) 18. Nc4 {[%emt 0:00:42]} a4 {[%emt 0:00:49][%cal Oa4a3]} 19. e5 {[%emt 0:04:06]} (19. Qe1 $142) 19... d5 {[%emt 0:10:06]} (19... Qc6 $17 {White must now prevent ...b5.} 20. f4 b5) 20. Na3 $1 $15 {[%emt 0:00:49]} Qc6 {[%emt 0:00:27]} 21. f4 {[%emt 0:01:17]} b5 {[%emt 0:00:23]} 22. Rg1 {[%emt 0:02:35]} (22. c4) (22. c4 $1 $15) 22... b4 $19 {[%emt 0:03:43]} 23. Nb1 {[%emt 0:00:56]} b3 {[%emt 0:00:20]} (23... f6 $142 {And now ...fxe5 would win.} 24. g4 hxg4 25. Rxg4 fxe5) 24. a3 $17 {[%emt 0:00:07]} bxc2 {[%emt 0:00:13]} 25. Rxc2 {[%emt 0:00:02]} Rfc8 {[%emt 0:01:25]} (25... f6 26. exf6 Qxf6) (25... f6 $1 $17 {...fxe5 is the strong threat.} 26. exf6 Qxf6) 26. g4 {[%emt 0:01:47]} hxg4 {[%emt 0:01:10]} 27. Rxg4 {[%emt 0:00:11][%cal Oh4h5]} (27. Qe2) 27... d4 {[%emt 0:00:20]} 28. Qg1 {[%emt 0:01:10]} Rb6 $2 {[%emt 0:05:35][%mdl 8192] [#]} (28... c4 29. dxc4 d3) (28... c4 $1 $17 29. dxc4 d3) 29. h5 $2 {[%emt 0:00:22] [#]} (29. Nd2) (29. Nd2 $1 $16 {is necessary to keep the advantage.}) 29... Qe6 $2 {[%emt 0:02:25]} (29... Qf3 $1 $17 {and life is bright.} 30. hxg6 Rxg6) 30. hxg6 {[%emt 0:00:29]} fxg6 {[%emt 0:00:09]} (30... f5 $16 {is a better defense.} 31. Rgg2 c4 32. Qxd4 Rd6) 31. f5 $4 {[%emt 0:01:34][%mdl 8192]} (31. Nd2 $18 {is the narrow road to win.}) 31... Qxf5 {[%emt 0:04:13]} 32. Rf2 $2 {[%emt 0:01:01]} (32. Nd2 Qxd3 33. Rxd4 cxd4 34. Rxc8+ Kf7 35. Qf2+ Ke6 36. Qf3 Qxf3 37. Nxf3) (32. Nd2 Bh6 33. Rh4 Bxd2+ 34. Rxd2) 32... Qxd3 $19 {[%emt 0:00:27]} 33. Rg3 {[%emt 0:04:32]} Qa6 {[%emt 0:03:04]} 34. Rgf3 {[%emt 0:02:42]} (34. Qg2 Qc4+ 35. Kd1) (34. Kd1 $142 c4 35. Qf1) 34... Rf8 $2 {[%emt 0:06:37]} (34... Bh6+ 35. Kd1 Be3) 35. Qg2 {[%emt 0:03:42]} (35. Rxf8+ $142 Bxf8 36. Nd2) 35... Rbb8 {[%emt 0:05:03]} 36. Rxf8+ {[%emt 0:01:38]} Rxf8 {[%emt 0:00:19]} 37. Qd5+ {[%emt 0:00:07]} Kh7 {[%emt 0:00:30]} 38. Rxf8 {[%emt 0:00:36]} Bh6+ {[%emt 0:00:33]} (38... Bxf8 39. Nd2 Qe2 40. Qf7+ Bg7 41. Qxe7 Qxe5 42. Qh4+ Bh6) 39. Nd2 {[%emt 0:01:07][%csl Gf8][%cal Rd5g8]} Bxf8 {[%emt 0:01:39][%mdl 4096] Endgame KQB-KQN} 40. Qf7+ Bg7 {[%emt 0:00:25]} 41. Qxe7 {[%emt 0:30:29]} Qb6 $2 {[%emt 0:30:45]} (41... Qe2 42. Kc2 Qxe5) (41... Qe2 $17 42. Kc2 Qxe5 43. Qxe5 Bxe5) 42. e6 {[%emt 0:00:45]} (42. Ne4 Qb3 43. Ng5+ Kh6 44. Nf7+ Kh7 45. Ng5+ Kh6 46. Nf7+ Kh7 47. Ng5+) 42... Qc6 {[%emt 0:01:34]} (42... d3 43. Qh4+ (43. Nc4 Qc6) 43... Kg8) 43. Qd7 $132 {[%emt 0:02:37][%mdl 2048] White is not holding back} Qxd7 {[%emt 0:04:23]} ({Better is} 43... Qh1+ $11 44. Kc2 c4 45. Nxc4 Qe4+ 46. Kd2 Qg2+ 47. Ke1 Qe4+ 48. Kd2 Qg2+ 49. Ke1 Qg3+ 50. Ke2 Qg4+ 51. Kd2 Qf4+ 52. Ke2 Qe4+ 53. Kd2) 44. exd7 $11 {[%emt 0:00:16] White wants to mate with Ne4. KB-KN} Bf6 {[%emt 0:00:12]} 45. Ne4 {[%emt 0:00:06][%csl LRc5,LRf6]} Be7 {[%emt 0:00:13] [#]} 46. Nxc5 $1 {[%emt 0:00:45]} g5 $1 {[%emt 0:00:12]} 47. Kd1 {[%emt 0:02:03]} Kg6 {[%emt 0:00:15]} 48. Ke2 {[%emt 0:03:19] aiming for Ne6.} Kf7 {[%emt 0:00:38] Inhibits Ne6.} 49. Nxa4 {[%emt 0:01:59][%cal Oa4c5]} Ke6 $2 {[%emt 0:00:19][%mdl 8192] [#]} (49... g4 $11) 50. Nc5+ $1 $18 {[%emt 0:01:02][%mdl 512]} Kd6 {[%emt 0:00:17]} (50... Kd5 51. b4) 51. Nd3 $2 {[%emt 0:00:52]} (51. d8=Q+ $18 Bxd8 52. Nb7+ Kd5 53. Nxd8) 51... Kxd7 $11 {[%emt 0:00:22] The position is equal.} 52. b4 {[%emt 0:00:41][%cal Bb2b4,Bb4b5][%mdl 32]} Kc6 {[%emt 0:00:26]} 53. a4 {[%emt 0:01:12]} g4 {[%emt 0:00:27]} 54. b5+ {[%emt 0:00:18]} Kb6 {[%emt 0:00:11]} 55. Nf4 {[%emt 0:00:47] Threatening mate with Nd5+.} Bc5 {[%emt 0:00:40]} 56. Nd3 {[%emt 0:00:41]} Bd6 {[%emt 0:00:12]} 57. Kf2 {[%emt 0:01:05] A wild game.  Weighted Error Value: White=0.79/Black=0.53} 1/2-1/2